[Event "Titled Tuesday Blitz June 21 Late 2022"]
[White "Zhurbinsky, David"]
[Black "Flynn, Jacob"]
[WhiteFideId "2072904"]
[BlackFideId "2509393"]
[WhiteElo "2540"]
[BlackElo "1896"]
[Result "1-0"]
[Round "02"]
[TimeControl "180+1"]
[Date "2022.06.22"]
[WhiteClock "0:00:16"]
[BlackClock "0:00:18"]

1. e4 {[%clk 0:03:00]}  e5 {[%clk 0:02:51]} 2. Nf3 {[%clk 0:02:59]}  Nc6 {[%clk 0:02:52]} 3. Bb5 {[%clk 0:02:56]}  a6 {[%clk 0:02:52]} 4. Ba4 {[%clk 0:02:57]}  Nf6 {[%clk 0:02:52]} 5. O-O {[%clk 0:02:56]}  Be7 {[%clk 0:02:53]} 6. Re1 {[%clk 0:02:53]}  b5 {[%clk 0:02:53]} 7. Bb3 {[%clk 0:02:52]}  O-O {[%clk 0:02:54]} 8. h3 {[%clk 0:02:52]}  Bb7 {[%clk 0:02:54]} 9. c3 {[%clk 0:02:52]}  d6 {[%clk 0:02:52]} 10. d4 {[%clk 0:02:50]}  Re8 {[%clk 0:02:53]} 11. Ng5 {[%clk 0:02:43]}  Rf8 {[%clk 0:02:52]} 12. Nf3 {[%clk 0:02:30]}  Re8 {[%clk 0:02:53]} 13. Nbd2 {[%clk 0:02:26]}  Bf8 {[%clk 0:02:42]} 14. Nf1 {[%clk 0:02:14]}  h6 {[%clk 0:02:37]} 15. Ng3 {[%clk 0:02:12]}  exd4 {[%clk 0:02:36]} 16. cxd4 {[%clk 0:02:10]}  Na5 {[%clk 0:02:28]} 17. Bc2 {[%clk 0:02:08]}  c5 {[%clk 0:02:28]} 18. Bf4 {[%clk 0:01:46]}  Nc4 {[%clk 0:02:26]} 19. b3 {[%clk 0:01:37]}  Nb6 {[%clk 0:02:22]} 20. dxc5 {[%clk 0:01:35]}  dxc5 {[%clk 0:02:21]} 21. Qxd8 {[%clk 0:01:36]}  Raxd8 {[%clk 0:02:15]} 22. Bc7 {[%clk 0:01:37]}  Nbd7 {[%clk 0:02:13]} 23. Bxd8 {[%clk 0:01:36]}  Rxd8 {[%clk 0:02:14]} 24. Rad1 {[%clk 0:01:32]}  Re8 {[%clk 0:02:13]} 25. Nf5 {[%clk 0:00:48]}  Re6 {[%clk 0:02:08]} 26. b4 {[%clk 0:00:37]}  c4 {[%clk 0:02:07]} 27. N3d4 {[%clk 0:00:37]}  Re8 {[%clk 0:02:03]} 28. a3 {[%clk 0:00:33]}  Ne5 {[%clk 0:02:02]} 29. f4 {[%clk 0:00:32]}  Nd3 {[%clk 0:01:55]} 30. Bxd3 {[%clk 0:00:31]}  cxd3 {[%clk 0:01:55]} 31. e5 {[%clk 0:00:31]}  Nd5 {[%clk 0:01:55]} 32. g3 {[%clk 0:00:26]}  d2 {[%clk 0:01:36]} 33. Rxd2 {[%clk 0:00:20]}  g6 {[%clk 0:01:36]} 34. Ne3 {[%clk 0:00:19]}  Nb6 {[%clk 0:01:34]} 35. Ng4 {[%clk 0:00:16]}  Rc8 {[%clk 0:01:29]} 36. Nf6+ {[%clk 0:00:16]}  Kg7 {[%clk 0:01:28]} 37. f5 {[%clk 0:00:12]}  Rc3 {[%clk 0:01:25]} 38. Kh2 {[%clk 0:00:08]}  Nc4 {[%clk 0:01:23]} 39. Ne8+ {[%clk 0:00:08]}  Kg8 {[%clk 0:01:22]} 40. Rf2 {[%clk 0:00:09]}  g5 {[%clk 0:01:17]} 41. e6 {[%clk 0:00:09]}  Ne3 {[%clk 0:00:41]} 42. f6 {[%clk 0:00:05]}  fxe6 {[%clk 0:00:25]} 43. f7+ {[%clk 0:00:05]}  Kh7 {[%clk 0:00:25]} 44. Nxe6 {[%clk 0:00:06]}  Be7 {[%clk 0:00:12]} 45. f8=Q {[%clk 0:00:06]}  Bxf8 {[%clk 0:00:13]} 46. Nxf8+ {[%clk 0:00:07]}  Kg8 {[%clk 0:00:13]} 47. Ng6 {[%clk 0:00:05]}  h5 {[%clk 0:00:11]} 48. Ne7+ {[%clk 0:00:03]}  Kh7 {[%clk 0:00:11]} 49. Rf7+ {[%clk 0:00:04]}  Kh6 {[%clk 0:00:11]} 50. Ng8+ {[%clk 0:00:02]}  Kg6 {[%clk 0:00:10]} 51. Rg7+ {[%clk 0:00:03]}  Kf5 {[%clk 0:00:10]} 52. Nd6+ {[%clk 0:00:03]}  Ke6 {[%clk 0:00:10]} 53. Nxb7 {[%clk 0:00:03]}  Rc2+ {[%clk 0:00:10]} 54. Kg1 {[%clk 0:00:03]}  Rg2+ {[%clk 0:00:08]} 55. Kh1 {[%clk 0:00:04]}  Rxg3 {[%clk 0:00:09]} 56. Rxe3+ {[%clk 0:00:04]}  Rxe3 {[%clk 0:00:09]} 57. Re7+ {[%clk 0:00:05]}  Kf5 {[%clk 0:00:09]} 58. Rxe3 {[%clk 0:00:06]}  g4 {[%clk 0:00:09]} 59. hxg4+ {[%clk 0:00:06]}  Kf4 {[%clk 0:00:10]} 60. Re1 {[%clk 0:00:06]}  hxg4 {[%clk 0:00:10]} 61. Rg1 {[%clk 0:00:07]}  g3 {[%clk 0:00:10]} 62. Kg2 {[%clk 0:00:08]}  Ke3 {[%clk 0:00:11]} 63. Nh6 {[%clk 0:00:09]}  Kd3 {[%clk 0:00:12]} 64. Nc5+ {[%clk 0:00:10]}  Kc3 {[%clk 0:00:13]} 65. Nxa6 {[%clk 0:00:11]}  Kb3 {[%clk 0:00:13]} 66. Nc7 {[%clk 0:00:11]}  Ka4 {[%clk 0:00:14]} 67. Nxb5 {[%clk 0:00:12]}  Kb3 {[%clk 0:00:14]} 68. Nd6 {[%clk 0:00:13]}  Ka4 {[%clk 0:00:15]} 69. Kxg3 {[%clk 0:00:14]}  Kb3 {[%clk 0:00:15]} 70. b5 {[%clk 0:00:15]}  Ka4 {[%clk 0:00:16]} 71. b6 {[%clk 0:00:16]}  Kb3 {[%clk 0:00:16]} 72. b7 {[%clk 0:00:17]}  Ka4 {[%clk 0:00:17]} 73. b8=Q {[%clk 0:00:17]}  Ka5 {[%clk 0:00:18]} 74. Qb5# {[%clk 0:00:16]} 1-0


[Site "https://www.chess.com"]

[Event "Titled Tuesday Blitz June 21 Late 2022"]
[White "Zlatin, Alexander"]
[Black "Vasquez Schroeder, Rodrigo"]
[WhiteFideId "2810549"]
[BlackFideId "3400042"]
[WhiteElo "2228"]
[BlackElo "2567"]
[Result "0-1"]
[Round "02"]
[TimeControl "180+1"]
[Date "2022.06.22"]
[WhiteClock "0:00:44"]
[BlackClock "0:01:27"]

1. d4 {[%clk 0:03:00]}  Nf6 {[%clk 0:02:59]} 2. Nc3 {[%clk 0:03:01]}  d6 {[%clk 0:02:55]} 3. Bf4 {[%clk 0:02:59]}  Nbd7 {[%clk 0:02:54]} 4. Nf3 {[%clk 0:02:58]}  c5 {[%clk 0:02:54]} 5. e3 {[%clk 0:02:55]}  a6 {[%clk 0:02:52]} 6. a4 {[%clk 0:02:53]}  g6 {[%clk 0:02:47]} 7. Be2 {[%clk 0:02:53]}  Bg7 {[%clk 0:02:47]} 8. O-O {[%clk 0:02:48]}  b6 {[%clk 0:02:47]} 9. Re1 {[%clk 0:02:40]}  Bb7 {[%clk 0:02:47]} 10. Ng5 {[%clk 0:02:28]}  O-O {[%clk 0:02:43]} 11. Bf3 {[%clk 0:02:27]}  d5 {[%clk 0:02:27]} 12. dxc5 {[%clk 0:02:03]}  Nxc5 {[%clk 0:02:25]} 13. Be5 {[%clk 0:02:00]}  e6 {[%clk 0:02:20]} 14. Nh3 {[%clk 0:02:00]}  Qe7 {[%clk 0:02:17]} 15. Qd4 {[%clk 0:01:59]}  Ncd7 {[%clk 0:02:15]} 16. Bxf6 {[%clk 0:01:41]}  Bxf6 {[%clk 0:02:13]} 17. Qd2 {[%clk 0:01:41]}  Ne5 {[%clk 0:02:12]} 18. Be2 {[%clk 0:01:38]}  Rac8 {[%clk 0:02:10]} 19. Nf4 {[%clk 0:01:37]}  Nc4 {[%clk 0:02:03]} 20. Bxc4 {[%clk 0:01:35]}  Rxc4 {[%clk 0:02:04]} 21. Nd1 {[%clk 0:01:33]}  d4 {[%clk 0:01:52]} 22. e4 {[%clk 0:01:28]}  Rfc8 {[%clk 0:01:46]} 23. Rc1 {[%clk 0:01:02]}  Qc7 {[%clk 0:01:43]} 24. c3 {[%clk 0:00:52]}  Bg5 {[%clk 0:01:28]} 25. h4 {[%clk 0:00:44]}  Bxf4 {[%clk 0:01:27]} 0-1


[Site "https://www.chess.com"]

[Event "Titled Tuesday Blitz June 21 Late 2022"]
[White "Ambartsumova, Karina"]
[Black "Zhou, Qiyu"]
[WhiteFideId "4166299"]
[BlackFideId "505161"]
[WhiteElo "2262"]
[BlackElo "1925"]
[Result "1-0"]
[Round "03"]
[TimeControl "180+1"]
[Date "2022.06.22"]
[WhiteClock "0:00:27"]
[BlackClock "0:00:06"]

1. d4 {[%clk 0:03:00]}  Nf6 {[%clk 0:02:56]} 2. Nf3 {[%clk 0:03:00]}  d5 {[%clk 0:02:55]} 3. c4 {[%clk 0:03:00]}  e6 {[%clk 0:02:54]} 4. Nc3 {[%clk 0:03:00]}  Be7 {[%clk 0:02:50]} 5. Bf4 {[%clk 0:02:58]}  O-O {[%clk 0:02:49]} 6. e3 {[%clk 0:02:55]}  b6 {[%clk 0:02:45]} 7. Rc1 {[%clk 0:02:55]}  c5 {[%clk 0:02:44]} 8. cxd5 {[%clk 0:02:51]}  exd5 {[%clk 0:02:44]} 9. Be2 {[%clk 0:02:47]}  Nh5 {[%clk 0:02:28]} 10. dxc5 {[%clk 0:02:35]}  Nxf4 {[%clk 0:02:26]} 11. exf4 {[%clk 0:02:36]}  Bxc5 {[%clk 0:02:21]} 12. Qxd5 {[%clk 0:02:23]}  Qxd5 {[%clk 0:02:03]} 13. Nxd5 {[%clk 0:02:24]}  Nc6 {[%clk 0:01:54]} 14. O-O {[%clk 0:02:21]}  Bb7 {[%clk 0:01:45]} 15. Bb5 {[%clk 0:02:15]}  Rac8 {[%clk 0:01:35]} 16. a3 {[%clk 0:02:06]}  Rfe8 {[%clk 0:00:51]} 17. b4 {[%clk 0:02:00]}  Bf8 {[%clk 0:00:50]} 18. Ne5 {[%clk 0:01:12]}  Nxe5 {[%clk 0:00:45]} 19. Bxe8 {[%clk 0:01:13]}  Rxe8 {[%clk 0:00:37]} 20. Nc7 {[%clk 0:01:12]}  Re7 {[%clk 0:00:16]} 21. fxe5 {[%clk 0:01:12]}  Rxe5 {[%clk 0:00:17]} 22. Rfe1 {[%clk 0:01:09]}  Rg5 {[%clk 0:00:17]} 23. g3 {[%clk 0:01:06]}  f5 {[%clk 0:00:16]} 24. Ne6 {[%clk 0:01:03]}  Rg6 {[%clk 0:00:15]} 25. Rc7 {[%clk 0:00:58]}  Be4 {[%clk 0:00:12]} 26. Nxf8 {[%clk 0:00:55]}  Kxf8 {[%clk 0:00:13]} 27. Rd1 {[%clk 0:00:51]}  Ke8 {[%clk 0:00:08]} 28. Rxa7 {[%clk 0:00:30]}  Rc6 {[%clk 0:00:06]} 29. Rxg7 {[%clk 0:00:27]} 1-0


[Site "https://www.chess.com"]

[Event "Titled Tuesday Blitz June 21 Late 2022"]
[White "Bachmann, Axel"]
[Black "Vifleemskaia, Svetlana"]
[WhiteFideId "3700488"]
[BlackFideId "4129490"]
[WhiteElo "2587"]
[BlackElo "1929"]
[Result "0-1"]
[Round "03"]
[TimeControl "180+1"]
[Date "2022.06.22"]
[WhiteClock "0:01:28"]
[BlackClock "0:01:45"]

1. e4 {[%clk 0:03:00]}  e5 {[%clk 0:02:57]} 2. Nf3 {[%clk 0:03:00]}  Nc6 {[%clk 0:02:56]} 3. Bc4 {[%clk 0:02:58]}  Nf6 {[%clk 0:02:55]} 4. Ng5 {[%clk 0:02:57]}  d5 {[%clk 0:02:55]} 5. exd5 {[%clk 0:02:56]}  Na5 {[%clk 0:02:55]} 6. Bb5+ {[%clk 0:02:56]}  c6 {[%clk 0:02:55]} 7. dxc6 {[%clk 0:02:56]}  bxc6 {[%clk 0:02:56]} 8. Be2 {[%clk 0:02:56]}  h6 {[%clk 0:02:55]} 9. Nf3 {[%clk 0:02:53]}  e4 {[%clk 0:02:55]} 10. Ng1 {[%clk 0:02:50]}  Bc5 {[%clk 0:02:53]} 11. d3 {[%clk 0:02:43]}  O-O {[%clk 0:02:47]} 12. Nc3 {[%clk 0:02:34]}  Re8 {[%clk 0:02:44]} 13. a3 {[%clk 0:02:17]}  Nb7 {[%clk 0:02:22]} 14. b4 {[%clk 0:02:15]}  Bd4 {[%clk 0:02:22]} 15. Bb2 {[%clk 0:02:15]}  c5 {[%clk 0:02:19]} 16. Kf1 {[%clk 0:01:57]}  Bf5 {[%clk 0:02:05]} 17. Rb1 {[%clk 0:01:55]}  Nd6 {[%clk 0:02:04]} 18. bxc5 {[%clk 0:01:51]}  Bxc5 {[%clk 0:02:00]} 19. dxe4 {[%clk 0:01:46]}  Nfxe4 {[%clk 0:01:54]} 20. Nxe4 {[%clk 0:01:46]}  Nxe4 {[%clk 0:01:52]} 21. Qxd8 {[%clk 0:01:43]}  Raxd8 {[%clk 0:01:48]} 22. Nh3 {[%clk 0:01:28]}  Nd2+ {[%clk 0:01:45]} 0-1


[Site "https://www.chess.com"]

[Event "Titled Tuesday Blitz June 21 Late 2022"]
[White "Bjelobrk, Igor"]
[Black "Semenenko, Dmytry"]
[WhiteFideId "4300726"]
[BlackFideId "14118645"]
[WhiteElo "2335"]
[BlackElo "2113"]
[Result "1-0"]
[Round "03"]
[TimeControl "180+1"]
[Date "2022.06.22"]
[WhiteClock "0:01:10"]
[BlackClock "0:00:52"]

1. Nf3 {[%clk 0:03:00]}  d5 {[%clk 0:03:00]} 2. g3 {[%clk 0:02:59]}  c6 {[%clk 0:03:00]} 3. Bg2 {[%clk 0:02:59]}  Nf6 {[%clk 0:03:00]} 4. c4 {[%clk 0:02:58]}  Bf5 {[%clk 0:03:00]} 5. cxd5 {[%clk 0:02:58]}  cxd5 {[%clk 0:03:00]} 6. Qb3 {[%clk 0:02:58]}  Qc7 {[%clk 0:02:58]} 7. Nc3 {[%clk 0:02:57]}  e6 {[%clk 0:02:58]} 8. d3 {[%clk 0:02:57]}  Nc6 {[%clk 0:02:56]} 9. O-O {[%clk 0:02:56]}  a6 {[%clk 0:02:53]} 10. Bf4 {[%clk 0:02:54]}  Qd7 {[%clk 0:02:49]} 11. Na4 {[%clk 0:02:43]}  Na5 {[%clk 0:02:33]} 12. Qd1 {[%clk 0:02:42]}  Rd8 {[%clk 0:02:20]} 13. Rc1 {[%clk 0:02:28]}  Bd6 {[%clk 0:02:12]} 14. Nb6 {[%clk 0:02:25]}  Qb5 {[%clk 0:02:04]} 15. Bxd6 {[%clk 0:02:23]}  Rxd6 {[%clk 0:02:04]} 16. Nc8 {[%clk 0:01:58]}  Rd8 {[%clk 0:01:59]} 17. Nd4 {[%clk 0:01:54]}  Qd7 {[%clk 0:01:48]} 18. Nb6 {[%clk 0:01:50]}  Qd6 {[%clk 0:01:36]} 19. Qa4+ {[%clk 0:01:45]}  Ke7 {[%clk 0:01:15]} 20. Qxa5 {[%clk 0:01:42]}  Bg6 {[%clk 0:01:12]} 21. Qc5 {[%clk 0:01:27]}  e5 {[%clk 0:01:12]} 22. Nb3 {[%clk 0:01:23]}  h5 {[%clk 0:01:05]} 23. h4 {[%clk 0:01:16]}  Rb8 {[%clk 0:00:56]} 24. Qc7+ {[%clk 0:01:13]}  Ke6 {[%clk 0:00:53]} 25. Nc5+ {[%clk 0:01:11]}  Kf5 {[%clk 0:00:52]} 26. Qxd6 {[%clk 0:01:10]} 1-0


[Site "https://www.chess.com"]

[Event "Titled Tuesday Blitz June 21 Late 2022"]
[White "Bortnyk, Mykola"]
[Black "Mikhailov, Viacheslav"]
[WhiteFideId "14120836"]
[BlackFideId "4187369"]
[WhiteElo "2582"]
[BlackElo "2381"]
[Result "1-0"]
[Round "03"]
[TimeControl "180+1"]
[Date "2022.06.21"]
[WhiteClock "0:01:10"]
[BlackClock "0:00:07"]

1. e4 {[%clk 0:03:00]}  d6 {[%clk 0:02:59]} 2. d4 {[%clk 0:03:01]}  Nf6 {[%clk 0:02:59]} 3. Nc3 {[%clk 0:03:01]}  g6 {[%clk 0:03:00]} 4. h3 {[%clk 0:03:01]}  Bg7 {[%clk 0:03:00]} 5. g4 {[%clk 0:03:02]}  O-O {[%clk 0:03:01]} 6. Bg2 {[%clk 0:03:03]}  e5 {[%clk 0:03:00]} 7. Nge2 {[%clk 0:03:03]}  exd4 {[%clk 0:03:00]} 8. Nxd4 {[%clk 0:03:03]}  Nc6 {[%clk 0:03:01]} 9. Nxc6 {[%clk 0:03:04]}  bxc6 {[%clk 0:03:02]} 10. O-O {[%clk 0:03:04]}  Re8 {[%clk 0:02:58]} 11. Bf4 {[%clk 0:02:53]}  Rb8 {[%clk 0:02:56]} 12. Rb1 {[%clk 0:02:52]}  Be6 {[%clk 0:02:52]} 13. Qd2 {[%clk 0:02:50]}  Nd7 {[%clk 0:02:51]} 14. Bh6 {[%clk 0:02:47]}  Bxh6 {[%clk 0:02:41]} 15. Qxh6 {[%clk 0:02:48]}  Qf6 {[%clk 0:02:35]} 16. Qe3 {[%clk 0:02:47]}  Nb6 {[%clk 0:02:30]} 17. b3 {[%clk 0:02:41]}  c5 {[%clk 0:02:17]} 18. Rbd1 {[%clk 0:02:39]}  Bd7 {[%clk 0:01:34]} 19. f4 {[%clk 0:02:31]}  Bc6 {[%clk 0:01:33]} 20. e5 {[%clk 0:01:48]}  Bxg2 {[%clk 0:01:34]} 21. Kxg2 {[%clk 0:01:41]}  dxe5 {[%clk 0:01:34]} 22. Ne4 {[%clk 0:01:36]}  Qc6 {[%clk 0:01:30]} 23. f5 {[%clk 0:01:36]}  Nd5 {[%clk 0:01:26]} 24. Rxd5 {[%clk 0:01:11]}  Qxd5 {[%clk 0:01:27]} 25. Rf3 {[%clk 0:01:11]}  Qd4 {[%clk 0:00:52]} 26. Qh6 {[%clk 0:01:10]}  Rb6 {[%clk 0:00:07]} 27. f6 {[%clk 0:01:10]} 1-0


[Site "https://www.chess.com"]

[Event "Titled Tuesday Blitz June 21 Late 2022"]
[White "Bortnyk, Olexandr"]
[Black "Mahdavi, Reza"]
[WhiteFideId "14120828"]
[BlackFideId "12595926"]
[WhiteElo "2723"]
[BlackElo "2265"]
[Result "1-0"]
[Round "03"]
[TimeControl "180+1"]
[Date "2022.06.21"]
[WhiteClock "0:02:55"]
[BlackClock "0:02:43"]

1. d4 {[%clk 0:03:00]}  Nf6 {[%clk 0:03:00]} 2. Nc3 {[%clk 0:03:00]}  d5 {[%clk 0:03:00]} 3. Bf4 {[%clk 0:02:59]}  g6 {[%clk 0:03:00]} 4. e3 {[%clk 0:02:58]}  Bg7 {[%clk 0:03:01]} 5. h4 {[%clk 0:02:59]}  O-O {[%clk 0:03:02]} 6. h5 {[%clk 0:02:59]}  c5 {[%clk 0:03:02]} 7. dxc5 {[%clk 0:02:59]}  Nc6 {[%clk 0:03:02]} 8. Nf3 {[%clk 0:02:58]}  Bg4 {[%clk 0:03:02]} 9. h6 {[%clk 0:02:58]}  Bh8 {[%clk 0:03:03]} 10. Be2 {[%clk 0:02:59]}  Bxf3 {[%clk 0:02:59]} 11. Bxf3 {[%clk 0:02:58]}  e5 {[%clk 0:03:00]} 12. Bg5 {[%clk 0:02:59]}  d4 {[%clk 0:03:00]} 13. Nd5 {[%clk 0:02:55]}  Qa5+ {[%clk 0:02:53]} 14. b4 {[%clk 0:02:55]}  Nxb4 {[%clk 0:02:43]} 15. Ne7# {[%clk 0:02:55]} 1-0


[Site "https://www.chess.com"]

[Event "Titled Tuesday Blitz June 21 Late 2022"]
[White "Cabarkapa, Novak"]
[Black "Keymer, Vincent"]
[WhiteFideId "943746"]
[BlackFideId "12940690"]
[WhiteElo "2433"]
[BlackElo "2548"]
[Result "0-1"]
[Round "03"]
[TimeControl "180+1"]
[Date "2022.06.21"]
[WhiteClock "0:00:07"]
[BlackClock "0:00:06"]

1. d4 {[%clk 0:03:00]}  c6 {[%clk 0:03:00]} 2. Nc3 {[%clk 0:03:00]}  d5 {[%clk 0:02:59]} 3. Bf4 {[%clk 0:03:01]}  Nf6 {[%clk 0:02:55]} 4. e3 {[%clk 0:03:00]}  Bg4 {[%clk 0:02:48]} 5. f3 {[%clk 0:02:59]}  Bh5 {[%clk 0:02:42]} 6. g4 {[%clk 0:02:57]}  Bg6 {[%clk 0:02:42]} 7. h4 {[%clk 0:02:58]}  h5 {[%clk 0:02:42]} 8. g5 {[%clk 0:02:58]}  Nfd7 {[%clk 0:02:37]} 9. Bd3 {[%clk 0:02:58]}  Bxd3 {[%clk 0:02:36]} 10. Qxd3 {[%clk 0:02:59]}  g6 {[%clk 0:02:37]} 11. O-O-O {[%clk 0:02:58]}  e6 {[%clk 0:02:36]} 12. e4 {[%clk 0:02:57]}  Bg7 {[%clk 0:02:33]} 13. Nge2 {[%clk 0:02:31]}  O-O {[%clk 0:02:31]} 14. Ng3 {[%clk 0:02:31]}  a5 {[%clk 0:02:19]} 15. Bxb8 {[%clk 0:02:31]}  Qxb8 {[%clk 0:02:13]} 16. e5 {[%clk 0:02:30]}  b5 {[%clk 0:02:00]} 17. f4 {[%clk 0:02:30]}  a4 {[%clk 0:02:00]} 18. Nce2 {[%clk 0:02:29]}  c5 {[%clk 0:01:55]} 19. Nxh5 {[%clk 0:02:25]}  gxh5 {[%clk 0:01:50]} 20. Ng3 {[%clk 0:02:23]}  a3 {[%clk 0:01:29]} 21. Nxh5 {[%clk 0:01:42]}  axb2+ {[%clk 0:01:24]} 22. Kd2 {[%clk 0:01:42]}  cxd4 {[%clk 0:01:04]} 23. Nf6+ {[%clk 0:01:36]}  Bxf6 {[%clk 0:00:16]} 24. gxf6 {[%clk 0:01:34]}  Nxf6 {[%clk 0:00:16]} 25. Qg3+ {[%clk 0:00:35]}  Kh8 {[%clk 0:00:16]} 26. exf6 {[%clk 0:00:36]}  Rg8 {[%clk 0:00:14]} 27. Qf3 {[%clk 0:00:23]}  Rg6 {[%clk 0:00:14]} 28. Rhg1 {[%clk 0:00:22]}  Qg8 {[%clk 0:00:12]} 29. Rg5 {[%clk 0:00:12]}  Qh7 {[%clk 0:00:10]} 30. h5 {[%clk 0:00:06]}  Rxf6 {[%clk 0:00:07]} 31. Rdg1 {[%clk 0:00:06]}  Rf5 {[%clk 0:00:06]} 32. Qd3 {[%clk 0:00:04]}  Rxg5 {[%clk 0:00:06]} 33. Qxh7+ {[%clk 0:00:05]}  Kxh7 {[%clk 0:00:06]} 34. fxg5 {[%clk 0:00:06]}  Rxa2 {[%clk 0:00:06]} 35. Rb1 {[%clk 0:00:06]}  e5 {[%clk 0:00:07]} 36. Kd3 {[%clk 0:00:07]}  b4 {[%clk 0:00:07]} 37. Kd2 {[%clk 0:00:07]}  e4 {[%clk 0:00:07]} 38. Ke2 {[%clk 0:00:07]}  b3 {[%clk 0:00:06]} 39. cxb3 {[%clk 0:00:08]}  d3+ {[%clk 0:00:06]} 40. Ke3 {[%clk 0:00:09]}  Kg7 {[%clk 0:00:05]} 41. Kd4 {[%clk 0:00:07]}  d2 {[%clk 0:00:05]} 42. Ke3 {[%clk 0:00:07]}  Ra1 {[%clk 0:00:06]} 0-1


[Site "https://www.chess.com"]

[Event "Titled Tuesday Blitz June 21 Late 2022"]
[White "Coelho, Ramyres Santana"]
[Black "Zlatin, Alexander"]
[WhiteFideId "2120690"]
[BlackFideId "2810549"]
[WhiteElo "1888"]
[BlackElo "2228"]
[Result "0-1"]
[Round "03"]
[TimeControl "180+1"]
[Date "2022.06.22"]
[WhiteClock "0:01:07"]
[BlackClock "0:01:31"]

1. e4 {[%clk 0:02:59]}  e5 {[%clk 0:03:00]} 2. Nf3 {[%clk 0:02:58]}  Nc6 {[%clk 0:03:01]} 3. d4 {[%clk 0:02:58]}  exd4 {[%clk 0:03:01]} 4. Bc4 {[%clk 0:02:58]}  Bc5 {[%clk 0:03:01]} 5. c3 {[%clk 0:02:57]}  dxc3 {[%clk 0:03:01]} 6. O-O {[%clk 0:02:56]}  Nf6 {[%clk 0:02:57]} 7. e5 {[%clk 0:02:50]}  d5 {[%clk 0:02:56]} 8. Bb5 {[%clk 0:02:48]}  Ne4 {[%clk 0:02:54]} 9. Nxc3 {[%clk 0:02:38]}  Nxc3 {[%clk 0:02:47]} 10. bxc3 {[%clk 0:02:39]}  O-O {[%clk 0:02:48]} 11. Re1 {[%clk 0:02:35]}  Be6 {[%clk 0:02:36]} 12. Ng5 {[%clk 0:02:32]}  h6 {[%clk 0:02:31]} 13. Qh5 {[%clk 0:02:14]}  hxg5 {[%clk 0:02:15]} 14. Bxg5 {[%clk 0:02:13]}  Qd7 {[%clk 0:01:58]} 15. Bd3 {[%clk 0:02:01]}  Bf5 {[%clk 0:01:50]} 16. Bf6 {[%clk 0:01:50]}  Bxd3 {[%clk 0:01:43]} 17. Qg5 {[%clk 0:01:41]}  Bg6 {[%clk 0:01:40]} 18. Rad1 {[%clk 0:01:24]}  Rae8 {[%clk 0:01:36]} 19. Rd3 {[%clk 0:01:15]}  Qf5 {[%clk 0:01:34]} 20. Rf3 {[%clk 0:01:06]}  Qxg5 {[%clk 0:01:31]} 21. Bxg5 {[%clk 0:01:07]}  Nxe5 {[%clk 0:01:31]} 0-1


[Site "https://www.chess.com"]

[Event "Titled Tuesday Blitz June 21 Late 2022"]
[White "Daggupati, Balaji"]
[Black "Ladan, Nicholas"]
[WhiteFideId "2090759"]
[BlackFideId "30918855"]
[WhiteElo "2683"]
[BlackElo "2167"]
[Result "0-1"]
[Round "03"]
[TimeControl "180+1"]
[Date "2022.06.22"]
[WhiteClock "0:00:19"]
[BlackClock "0:00:11"]

1. e4 {[%clk 0:03:00]}  e5 {[%clk 0:02:59]} 2. Nf3 {[%clk 0:03:00]}  Nc6 {[%clk 0:03:00]} 3. Bb5 {[%clk 0:03:01]}  a6 {[%clk 0:02:59]} 4. Ba4 {[%clk 0:03:01]}  g6 {[%clk 0:02:59]} 5. O-O {[%clk 0:02:58]}  Bg7 {[%clk 0:02:59]} 6. c3 {[%clk 0:02:59]}  d6 {[%clk 0:02:58]} 7. d4 {[%clk 0:02:59]}  b5 {[%clk 0:02:58]} 8. Bb3 {[%clk 0:02:58]}  exd4 {[%clk 0:02:59]} 9. cxd4 {[%clk 0:02:58]}  Na5 {[%clk 0:02:59]} 10. Bc2 {[%clk 0:02:56]}  Ne7 {[%clk 0:02:59]} 11. Bd2 {[%clk 0:02:54]}  Nc4 {[%clk 0:02:54]} 12. Bc3 {[%clk 0:02:54]}  O-O {[%clk 0:02:49]} 13. b3 {[%clk 0:02:54]}  Nb6 {[%clk 0:02:45]} 14. d5 {[%clk 0:02:54]}  c5 {[%clk 0:02:36]} 15. dxc6 {[%clk 0:02:49]}  Nxc6 {[%clk 0:02:33]} 16. Bxg7 {[%clk 0:02:48]}  Kxg7 {[%clk 0:02:33]} 17. Nc3 {[%clk 0:02:48]}  Qf6 {[%clk 0:02:29]} 18. Qd2 {[%clk 0:02:31]}  Bg4 {[%clk 0:02:25]} 19. Bd1 {[%clk 0:02:19]}  Rfe8 {[%clk 0:02:19]} 20. h3 {[%clk 0:02:18]}  Bxf3 {[%clk 0:02:09]} 21. Bxf3 {[%clk 0:02:19]}  Nd4 {[%clk 0:02:08]} 22. Bd1 {[%clk 0:02:13]}  Rac8 {[%clk 0:02:05]} 23. Rc1 {[%clk 0:02:12]}  b4 {[%clk 0:01:55]} 24. Nd5 {[%clk 0:02:07]}  Nxd5 {[%clk 0:01:47]} 25. Rxc8 {[%clk 0:01:59]}  Rxc8 {[%clk 0:01:29]} 26. exd5 {[%clk 0:02:00]}  a5 {[%clk 0:01:24]} 27. Re1 {[%clk 0:01:51]}  Rc5 {[%clk 0:01:24]} 28. Qd3 {[%clk 0:01:28]}  Rxd5 {[%clk 0:01:19]} 29. Qa6 {[%clk 0:01:28]}  Re5 {[%clk 0:01:15]} 30. Rf1 {[%clk 0:01:24]}  h5 {[%clk 0:01:02]} 31. Qd3 {[%clk 0:01:09]}  Qf4 {[%clk 0:00:56]} 32. Qa6 {[%clk 0:01:04]}  Qf6 {[%clk 0:00:40]} 33. Qd3 {[%clk 0:01:03]}  Qf4 {[%clk 0:00:37]} 34. Qa6 {[%clk 0:00:54]}  Rd5 {[%clk 0:00:36]} 35. Re1 {[%clk 0:00:50]}  Qd2 {[%clk 0:00:32]} 36. Rf1 {[%clk 0:00:49]}  Qc3 {[%clk 0:00:27]} 37. Qa8 {[%clk 0:00:45]}  Qc5 {[%clk 0:00:26]} 38. Kh1 {[%clk 0:00:39]}  Re5 {[%clk 0:00:26]} 39. Qd8 {[%clk 0:00:33]}  Qd5 {[%clk 0:00:23]} 40. Kg1 {[%clk 0:00:29]}  Rg5 {[%clk 0:00:23]} 41. f3 {[%clk 0:00:26]}  Re5 {[%clk 0:00:23]} 42. Kh2 {[%clk 0:00:24]}  Nf5 {[%clk 0:00:21]} 43. f4 {[%clk 0:00:24]}  Re3 {[%clk 0:00:20]} 44. Bf3 {[%clk 0:00:23]}  Qd2 {[%clk 0:00:19]} 45. Bxh5 {[%clk 0:00:21]}  Rg3 {[%clk 0:00:10]} 46. Bf3 {[%clk 0:00:20]}  Qd3 {[%clk 0:00:08]} 47. Rf2 {[%clk 0:00:18]}  Qe3 {[%clk 0:00:08]} 48. Re2 {[%clk 0:00:17]}  Qxf4 {[%clk 0:00:09]} 49. Kh1 {[%clk 0:00:17]}  Rxf3 {[%clk 0:00:08]} 50. gxf3 {[%clk 0:00:18]}  Ng3+ {[%clk 0:00:08]} 51. Kg2 {[%clk 0:00:18]}  Nxe2 {[%clk 0:00:09]} 52. Qe7 {[%clk 0:00:18]}  Nd4 {[%clk 0:00:09]} 53. Qd8 {[%clk 0:00:17]}  Qxf3+ {[%clk 0:00:09]} 54. Kg1 {[%clk 0:00:17]}  Ne2+ {[%clk 0:00:09]} 55. Kh2 {[%clk 0:00:18]}  Qg3+ {[%clk 0:00:10]} 56. Kh1 {[%clk 0:00:19]}  Qxh3# {[%clk 0:00:11]} 0-1


[Site "https://www.chess.com"]